[Event "GrandPrix_30.05"]
[Site "Chess.com"]
[Date "2020.05.30"]
[Round "5"]
[White "Promacherr"]
[Black "Jan1401"]
[Result "1-0"]
[WhiteElo "2188"]
[BlackElo "2245"]
[TimeControl "600+2"]
[EndTime "10:21:45 PDT"]
[Termination "Promacherr won by resignation"]

1. e4 {[%clk 0:10:01.9]} 1... e6 {[%clk 0:10:01.1]} 2. d4 {[%clk 0:10:02.7]}
2... d5 {[%clk 0:10:02.5]} 3. Nd2 {[%clk 0:10:03.4]} 3... Nc6 {[%clk 0:10:03.4]}
4. Ngf3 {[%clk 0:10:04.2]} 4... Nf6 {[%clk 0:10:04.4]} 5. e5 {[%clk 0:10:05.4]}
5... Nd7 {[%clk 0:10:05.2]} 6. Bb5 {[%clk 0:10:06.9]} 6... Be7 {[%clk
0:10:04.8]} 7. O-O {[%clk 0:10:07.2]} 7... a6 {[%clk 0:10:02.1]} 8. Bxc6 {[%clk
0:10:07.4]} 8... bxc6 {[%clk 0:10:03.2]} 9. Nb3 {[%clk 0:10:09.3]} 9... c5
{[%clk 0:10:00.4]} 10. Na5 {[%clk 0:10:08.1]} 10... Nb8 {[%clk 0:09:58.9]} 11.
c4 {[%clk 0:10:08]} 11... c6 {[%clk 0:09:49.5]} 12. Qa4 {[%clk 0:10:07.8]} 12...
O-O {[%clk 0:09:36.1]} 13. Rd1 {[%clk 0:09:45.9]} 13... Qc7 {[%clk 0:08:16.6]}
14. dxc5 {[%clk 0:08:37.8]} 14... Bxc5 {[%clk 0:07:52.6]} 15. b4 {[%clk
0:08:33.9]} 15... Be7 {[%clk 0:06:38.4]} 16. Be3 {[%clk 0:08:05.1]} 16... c5
{[%clk 0:06:29.1]} 17. cxd5 {[%clk 0:06:15.4]} 17... exd5 {[%clk 0:06:29.3]} 18.
Rac1 {[%clk 0:06:16.1]} 18... Bd7 {[%clk 0:06:13.6]} 19. Qc2 {[%clk 0:06:08.6]}
19... c4 {[%clk 0:06:05.9]} 20. Rxd5 {[%clk 0:05:59.4]} 20... Be6 {[%clk
0:05:48.8]} 21. Rd4 {[%clk 0:05:28.1]} 21... Nc6 {[%clk 0:05:22.2]} 22. Rxc4
{[%clk 0:04:30.1]} 22... Bxc4 {[%clk 0:05:14.2]} 23. Qxc4 {[%clk 0:04:32]} 23...
Bxb4 {[%clk 0:04:43.7]} 24. Nxc6 {[%clk 0:04:28.5]} 24... Ba3 {[%clk 0:04:38.5]}
25. Rc3 {[%clk 0:04:18.1]} 25... Rac8 {[%clk 0:03:32.3]} 26. Ne7+ {[%clk
0:03:40.4]} 26... Qxe7 {[%clk 0:03:27]} 27. Qxc8 {[%clk 0:03:39.4]} 27... Qb4
{[%clk 0:03:26.6]} 28. h3 {[%clk 0:03:24.6]} 28... h6 {[%clk 0:03:04.8]} 29. Qc4
{[%clk 0:03:22.5]} 29... Qb1+ {[%clk 0:03:01.3]} 30. Kh2 {[%clk 0:03:22.2]}
30... Be7 {[%clk 0:03:01.6]} 31. e6 {[%clk 0:03:01.2]} 31... Bd6+ {[%clk
0:02:54.2]} 32. g3 {[%clk 0:03:02.2]} 32... Qf5 {[%clk 0:02:54.2]} 33. exf7+
{[%clk 0:02:56.8]} 33... Kh8 {[%clk 0:02:50.3]} 34. Kg2 {[%clk 0:02:40.2]} 34...
Kh7 {[%clk 0:02:38.9]} 35. Qd3 {[%clk 0:02:37.9]} 35... Rxf7 {[%clk 0:02:37.2]}
36. Qxf5+ {[%clk 0:02:36.5]} 36... Rxf5 {[%clk 0:02:37.9]} 37. Rc6 {[%clk
0:02:38.4]} 1-0

[Event "GrandPrix_30.05"]
[Site "Chess.com"]
[Date "2020.05.30"]
[Round "5"]
[White "Supernotar"]
[Black "madamDD"]
[Result "1-0"]
[WhiteElo "2216"]
[BlackElo "2360"]
[TimeControl "600+2"]
[EndTime "10:21:52 PDT"]
[Termination "Supernotar won by resignation"]

1. d4 {[%clk 0:10:01.9]} 1... Nf6 {[%clk 0:09:59.3]} 2. c4 {[%clk 0:09:58.6]}
2... b6 {[%clk 0:09:59.7]} 3. Nf3 {[%clk 0:09:54.6]} 3... Bb7 {[%clk 0:09:58.3]}
4. Nbd2 {[%clk 0:09:55.1]} 4... d5 {[%clk 0:09:50.6]} 5. cxd5 {[%clk 0:09:51.6]}
5... Qxd5 {[%clk 0:09:32.9]} 6. e3 {[%clk 0:09:35.6]} 6... e6 {[%clk 0:09:31.2]}
7. Be2 {[%clk 0:09:19.8]} 7... Bd6 {[%clk 0:09:11.7]} 8. O-O {[%clk 0:09:09.5]}
8... O-O {[%clk 0:07:58.7]} 9. b3 {[%clk 0:08:46.1]} 9... c5 {[%clk 0:06:58.7]}
10. Nc4 {[%clk 0:08:35.2]} 10... Bc7 {[%clk 0:06:26.6]} 11. dxc5 {[%clk
0:08:28.9]} 11... Qxc5 {[%clk 0:06:15.4]} 12. Ba3 {[%clk 0:08:21.3]} 12... Qh5
{[%clk 0:06:14.7]} 13. Nfe5 {[%clk 0:06:32.2]} 13... Qg5 {[%clk 0:06:09]} 14.
Nf3 {[%clk 0:06:15.2]} 14... Qh6 {[%clk 0:05:53.5]} 15. Bxf8 {[%clk 0:05:37.4]}
15... Bxf3 {[%clk 0:05:28.5]} 16. Bd6 {[%clk 0:05:31.7]} 16... Bxe2 {[%clk
0:04:19.9]} 17. Qxe2 {[%clk 0:05:31.1]} 17... Bxd6 {[%clk 0:04:20.5]} 18. Nxd6
{[%clk 0:05:28.6]} 18... Nbd7 {[%clk 0:04:21]} 19. Rac1 {[%clk 0:05:11.6]} 19...
Ne5 {[%clk 0:04:08.9]} 20. Qa6 {[%clk 0:04:27.7]} 20... Rf8 {[%clk 0:03:35.6]}
21. Rc8 {[%clk 0:04:23.6]} 21... Nfg4 {[%clk 0:02:33.1]} 22. h3 {[%clk
0:03:59.2]} 22... Nf3+ {[%clk 0:02:33.4]} 23. gxf3 {[%clk 0:02:46.2]} 23... Qxh3
{[%clk 0:02:32.8]} 24. Rxf8+ {[%clk 0:02:45.9]} 24... Kxf8 {[%clk 0:02:33.8]}
25. Qc8+ {[%clk 0:02:46.4]} 25... Ke7 {[%clk 0:02:34.9]} 26. Qc7+ {[%clk
0:02:30.6]} 26... Kf6 {[%clk 0:02:35.2]} 27. Qxf7+ {[%clk 0:02:18.1]} 27... Ke5
{[%clk 0:02:27.2]} 28. Qf4+ {[%clk 0:02:00.1]} 1-0

[Event "GrandPrix_30.05"]
[Site "Chess.com"]
[Date "2020.05.30"]
[Round "5"]
[White "Poghosyan_Suren"]
[Black "grunbergmihai"]
[Result "0-1"]
[WhiteElo "2135"]
[BlackElo "2312"]
[TimeControl "600+2"]
[EndTime "10:21:56 PDT"]
[Termination "grunbergmihai won by resignation"]

1. d4 {[%clk 0:10:01.9]} 1... f5 {[%clk 0:09:55.3]} 2. e4 {[%clk 0:09:54.7]}
2... fxe4 {[%clk 0:09:55.3]} 3. Nc3 {[%clk 0:09:55.9]} 3... Nf6 {[%clk
0:09:55.6]} 4. Bg5 {[%clk 0:09:56.8]} 4... Nc6 {[%clk 0:09:56]} 5. d5 {[%clk
0:09:52.5]} 5... Ne5 {[%clk 0:09:55.5]} 6. Qd4 {[%clk 0:09:49]} 6... Nf7 {[%clk
0:09:55.3]} 7. h4 {[%clk 0:09:38.4]} 7... h6 {[%clk 0:09:27.1]} 8. Bf4 {[%clk
0:09:14]} 8... c6 {[%clk 0:09:01.1]} 9. O-O-O {[%clk 0:08:42.4]} 9... Qa5 {[%clk
0:08:17.8]} 10. Kb1 {[%clk 0:06:39.8]} 10... Nxd5 {[%clk 0:08:07.6]} 11. Nge2
{[%clk 0:06:09.2]} 11... e5 {[%clk 0:07:28.5]} 12. Qxe4 {[%clk 0:06:04.5]} 12...
Nf6 {[%clk 0:06:58.4]} 13. Qg6 {[%clk 0:04:14.6]} 13... exf4 {[%clk 0:06:59.1]}
14. Nxf4 {[%clk 0:04:16.5]} 14... Be7 {[%clk 0:06:09.2]} 15. Bc4 {[%clk
0:03:11.4]} 15... O-O {[%clk 0:05:37.4]} 16. Rhe1 {[%clk 0:02:13.2]} 16... d5
{[%clk 0:05:10.3]} 17. Rxe7 {[%clk 0:01:51.3]} 17... dxc4 {[%clk 0:05:10.9]} 18.
Ne4 {[%clk 0:01:51.6]} 18... Qf5 {[%clk 0:04:01]} 19. Rxf7 {[%clk 0:00:29.5]}
19... Rxf7 {[%clk 0:04:01.2]} 20. Qxf7+ {[%clk 0:00:24.8]} 20... Kxf7 {[%clk
0:03:58.5]} 21. Nd6+ {[%clk 0:00:26.1]} 21... Kg8 {[%clk 0:03:39.2]} 22. Nxf5
{[%clk 0:00:18.1]} 22... Bxf5 {[%clk 0:03:40]} 0-1

[Event "GrandPrix_30.05"]
[Site "Chess.com"]
[Date "2020.05.30"]
[Round "5"]
[White "TheJoker64"]
[Black "Misterlose0"]
[Result "1-0"]
[WhiteElo "2244"]
[BlackElo "1935"]
[TimeControl "600+2"]
[EndTime "10:22:00 PDT"]
[Termination "TheJoker64 won on time"]

1. e4 {[%clk 0:10:01.9]} 1... Nc6 {[%clk 0:10:00.4]} 2. Nf3 {[%clk 0:10:02.2]}
2... d5 {[%clk 0:10:02.3]} 3. exd5 {[%clk 0:09:59.7]} 3... Qxd5 {[%clk
0:10:04.2]} 4. Nc3 {[%clk 0:10:01.1]} 4... Qh5 {[%clk 0:10:05]} 5. Be2 {[%clk
0:09:57.4]} 5... Bg4 {[%clk 0:10:06.2]} 6. h3 {[%clk 0:09:09.7]} 6... O-O-O
{[%clk 0:10:05.9]} 7. O-O {[%clk 0:09:05.6]} 7... Bxh3 {[%clk 0:10:07.1]} 8.
gxh3 {[%clk 0:08:59.2]} 8... Qxh3 {[%clk 0:10:09]} 9. Nh2 {[%clk 0:09:00.3]}
9... e6 {[%clk 0:10:07.7]} 10. Ne4 {[%clk 0:08:24.6]} 10... Nf6 {[%clk 0:08:25]}
11. Ng5 {[%clk 0:08:10.8]} 11... Qh4 {[%clk 0:08:19.7]} 12. Nxf7 {[%clk
0:06:47.5]} 12... Nd4 {[%clk 0:04:47.7]} 13. d3 {[%clk 0:06:43.4]} 13... Rd5
{[%clk 0:04:37.7]} 14. Nxh8 {[%clk 0:05:23.9]} 14... Bd6 {[%clk 0:01:20.4]} 15.
f4 {[%clk 0:05:23.2]} 15... Rg5+ {[%clk 0:01:21.1]} 16. Kh1 {[%clk 0:05:22]}
16... Nf5 {[%clk 0:01:22.4]} 17. Nf7 {[%clk 0:04:34.5]} 17... Ng3+ {[%clk
0:00:28.5]} 18. Kg2 {[%clk 0:04:34]} 18... Nxf1+ {[%clk 0:00:06.4]} 19. Nxg5
{[%clk 0:04:08.9]} 19... Qxh2+ {[%clk 0:00:06.6]} 20. Kxf1 {[%clk 0:04:07.5]}
20... Qh1+ {[%clk 0:00:03.2]} 21. Kf2 {[%clk 0:04:07.1]} 21... Qh2+ {[%clk
0:00:04.3]} 22. Ke1 {[%clk 0:03:59.7]} 22... Qg3+ {[%clk 0:00:02.3]} 23. Kf1
{[%clk 0:03:58.9]} 1-0

[Event "GrandPrix_30.05"]
[Site "Chess.com"]
[Date "2020.05.30"]
[Round "5"]
[White "FCLitras"]
[Black "Pidzsy"]
[Result "1-0"]
[WhiteElo "2150"]
[BlackElo "2188"]
[TimeControl "600+2"]
[EndTime "10:22:22 PDT"]
[Termination "FCLitras won by resignation"]

1. d4 {[%clk 0:09:57.8]} 1... b5 {[%clk 0:09:21.2]} 2. e4 {[%clk 0:09:55.4]}
2... Bb7 {[%clk 0:09:22]} 3. Bd3 {[%clk 0:09:55.8]} 3... e6 {[%clk 0:09:19.1]}
4. Nd2 {[%clk 0:09:56.1]} 4... c5 {[%clk 0:09:18.8]} 5. c3 {[%clk 0:09:56.4]}
5... cxd4 {[%clk 0:09:17]} 6. cxd4 {[%clk 0:09:57.1]} 6... Nc6 {[%clk
0:09:18.8]} 7. Ngf3 {[%clk 0:09:57.6]} 7... Rc8 {[%clk 0:09:17.2]} 8. a3 {[%clk
0:09:51.3]} 8... Qb6 {[%clk 0:09:14.4]} 9. Nb3 {[%clk 0:09:38.8]} 9... Nf6
{[%clk 0:09:09.2]} 10. O-O {[%clk 0:09:38.2]} 10... Be7 {[%clk 0:09:03.7]} 11.
Be3 {[%clk 0:08:11.9]} 11... Ng4 {[%clk 0:08:55.5]} 12. Bf4 {[%clk 0:08:11.6]}
12... h5 {[%clk 0:08:27.4]} 13. h3 {[%clk 0:07:45.8]} 13... Nf6 {[%clk
0:08:07.7]} 14. Qe2 {[%clk 0:07:15]} 14... a6 {[%clk 0:08:05.3]} 15. Bg5 {[%clk
0:06:42.4]} 15... Na5 {[%clk 0:07:51.8]} 16. Nxa5 {[%clk 0:05:59.6]} 16... Qxa5
{[%clk 0:07:53.7]} 17. Rac1 {[%clk 0:05:50.8]} 17... O-O {[%clk 0:07:41.5]} 18.
e5 {[%clk 0:05:47]} 18... Nd5 {[%clk 0:07:37.9]} 19. Qe4 {[%clk 0:05:41.5]}
19... g6 {[%clk 0:07:19.7]} 20. Bxe7 {[%clk 0:05:40.9]} 20... Nxe7 {[%clk
0:07:20.6]} 21. Qxb7 {[%clk 0:05:41.6]} 21... Nc6 {[%clk 0:07:21.7]} 22. d5
{[%clk 0:04:44.2]} 22... exd5 {[%clk 0:06:47.6]} 23. Qxd7 {[%clk 0:04:31.1]}
23... Rfd8 {[%clk 0:06:48]} 24. Qb7 {[%clk 0:04:24.6]} 24... Rc7 {[%clk
0:06:49.1]} 25. b4 {[%clk 0:04:25.2]} 25... Rxb7 {[%clk 0:06:43.9]} 26. bxa5
{[%clk 0:04:26]} 26... Nxa5 {[%clk 0:06:45.8]} 27. Rfd1 {[%clk 0:04:06.2]} 27...
Kf8 {[%clk 0:06:28]} 28. Nd4 {[%clk 0:03:40.8]} 28... Nc4 {[%clk 0:06:13.1]} 29.
e6 {[%clk 0:03:41.8]} 29... Nxa3 {[%clk 0:05:58.7]} 30. e7+ {[%clk 0:03:34.2]}
30... Kxe7 {[%clk 0:05:42.1]} 31. Nc6+ {[%clk 0:03:35]} 31... Kd7 {[%clk
0:05:42.9]} 32. Nxd8 {[%clk 0:03:36.2]} 32... Kxd8 {[%clk 0:05:44.4]} 33. Ra1
{[%clk 0:03:34.4]} 33... b4 {[%clk 0:05:44]} 34. Bxa6 {[%clk 0:03:35.1]} 34...
Rb6 {[%clk 0:05:45.4]} 35. Rxd5+ {[%clk 0:03:34.2]} 35... Ke7 {[%clk 0:05:46.4]}
36. Re1+ {[%clk 0:03:30.2]} 36... Kf6 {[%clk 0:05:46.9]} 37. Bd3 {[%clk
0:03:30.4]} 37... b3 {[%clk 0:05:47.6]} 38. g4 {[%clk 0:03:19.7]} 38... b2
{[%clk 0:05:44.8]} 39. gxh5 {[%clk 0:03:18.8]} 39... gxh5 {[%clk 0:05:41.8]} 40.
Rxh5 {[%clk 0:03:14.6]} 40... Rb3 {[%clk 0:05:36]} 41. Rd5 {[%clk 0:03:08.6]}
41... b1=Q {[%clk 0:05:33.9]} 42. Bxb1 {[%clk 0:03:08.5]} 42... Nxb1 {[%clk
0:05:35.8]} 43. Kg2 {[%clk 0:03:01.8]} 43... Rb2 {[%clk 0:05:32.2]} 44. Rd3
{[%clk 0:02:59.7]} 44... Kg5 {[%clk 0:05:25.9]} 45. Re5+ {[%clk 0:02:55.5]}
45... Kf6 {[%clk 0:05:23.1]} 46. Red5 {[%clk 0:02:39.3]} 46... Rb4 {[%clk
0:05:11.6]} 47. Kg3 {[%clk 0:02:38.5]} 47... Rc4 {[%clk 0:05:08.8]} 48. R5d4
{[%clk 0:02:36.1]} 48... Rc2 {[%clk 0:05:07.5]} 49. Rf3+ {[%clk 0:02:33.8]}
49... Ke5 {[%clk 0:05:05]} 50. Rb4 {[%clk 0:02:27.4]} 50... Nd2 {[%clk
0:05:05.7]} 51. Rxf7 {[%clk 0:02:27.3]} 51... Ne4+ {[%clk 0:05:05.9]} 52. Rxe4+
{[%clk 0:02:24]} 52... Kxe4 {[%clk 0:05:06.9]} 53. h4 {[%clk 0:02:25.3]} 53...
Ke5 {[%clk 0:05:06.1]} 54. h5 {[%clk 0:02:25.8]} 54... Ke6 {[%clk 0:05:07]} 55.
Rf4 {[%clk 0:02:24.5]} 55... Rc1 {[%clk 0:05:05.1]} 56. Kh4 {[%clk 0:02:20.5]}
56... Rh1+ {[%clk 0:04:54.1]} 57. Kg5 {[%clk 0:02:21.1]} 57... Rg1+ {[%clk
0:04:54.7]} 58. Rg4 {[%clk 0:02:21]} 58... Rh1 {[%clk 0:04:54.4]} 59. Kg6 {[%clk
0:02:19.4]} 59... Rh2 {[%clk 0:04:47.2]} 60. f4 {[%clk 0:02:19.2]} 60... Ke7
{[%clk 0:04:48.1]} 61. h6 {[%clk 0:02:12.6]} 61... Kf8 {[%clk 0:04:40.5]} 62. h7
{[%clk 0:02:11.7]} 62... Rh1 {[%clk 0:04:41.3]} 63. Rg5 {[%clk 0:02:11.9]} 63...
Rh2 {[%clk 0:04:42.5]} 64. Rf5+ {[%clk 0:02:08]} 64... Ke7 {[%clk 0:04:43.2]}
65. Kg7 {[%clk 0:02:06.2]} 65... Rg2+ {[%clk 0:04:41.7]} 66. Rg5 {[%clk
0:02:07]} 66... Rf2 {[%clk 0:04:41]} 67. h8=Q {[%clk 0:02:06.6]} 1-0

[Event "GrandPrix_30.05"]
[Site "Chess.com"]
[Date "2020.05.30"]
[Round "5"]
[White "Olga_Girya"]
[Black "Andrei_Belozerov"]
[Result "0-1"]
[WhiteElo "2256"]
[BlackElo "2490"]
[TimeControl "600+2"]
[EndTime "10:22:32 PDT"]
[Termination "Andrei_Belozerov won by resignation"]

1. d4 {[%clk 0:09:58.5]} 1... d5 {[%clk 0:09:59.4]} 2. c4 {[%clk 0:09:57.2]}
2... c6 {[%clk 0:09:57.6]} 3. Nf3 {[%clk 0:09:54.6]} 3... Nf6 {[%clk 0:09:48.7]}
4. e3 {[%clk 0:09:55]} 4... Bg4 {[%clk 0:09:42.6]} 5. Qb3 {[%clk 0:09:40.6]}
5... Qb6 {[%clk 0:09:35.7]} 6. Ne5 {[%clk 0:09:39.1]} 6... Be6 {[%clk
0:09:30.7]} 7. c5 {[%clk 0:08:19.7]} 7... Qc7 {[%clk 0:09:29.6]} 8. Nc3 {[%clk
0:08:17.8]} 8... Nbd7 {[%clk 0:09:27]} 9. f4 {[%clk 0:08:16.9]} 9... g6 {[%clk
0:09:20.8]} 10. Be2 {[%clk 0:07:52.7]} 10... Bg7 {[%clk 0:09:04.4]} 11. O-O
{[%clk 0:07:46.9]} 11... O-O {[%clk 0:09:01.8]} 12. Bd2 {[%clk 0:07:42.8]} 12...
Bf5 {[%clk 0:07:45.6]} 13. g4 {[%clk 0:06:48.9]} 13... Ne4 {[%clk 0:07:42.7]}
14. gxf5 {[%clk 0:04:38.9]} 14... Nxd2 {[%clk 0:07:41.9]} 15. Qc2 {[%clk
0:04:39.9]} 15... Nxf1 {[%clk 0:07:41.2]} 16. Rxf1 {[%clk 0:04:38.9]} 16... Nf6
{[%clk 0:06:58.8]} 17. Kh1 {[%clk 0:04:31.7]} 17... Rae8 {[%clk 0:06:55.4]} 18.
Rg1 {[%clk 0:04:23]} 18... e6 {[%clk 0:06:51]} 19. fxg6 {[%clk 0:04:17.5]} 19...
hxg6 {[%clk 0:06:49.5]} 20. Bd3 {[%clk 0:04:10.6]} 20... Nd7 {[%clk 0:06:27]}
21. Ne2 {[%clk 0:03:38.6]} 21... Nxe5 {[%clk 0:06:20.5]} 22. fxe5 {[%clk
0:03:35.4]} 22... Bh6 {[%clk 0:05:54.2]} 23. Bxg6 {[%clk 0:03:27.6]} 23... fxg6
{[%clk 0:05:43.3]} 24. Qxg6+ {[%clk 0:03:27.6]} 24... Bg7 {[%clk 0:05:42.6]} 25.
Nf4 {[%clk 0:03:26]} 25... Rxf4 {[%clk 0:05:03.9]} 26. Qxe8+ {[%clk 0:03:18.3]}
26... Rf8 {[%clk 0:05:03.5]} 27. Qxe6+ {[%clk 0:03:18.8]} 27... Qf7 {[%clk
0:05:04.7]} 28. Qxf7+ {[%clk 0:01:34.6]} 28... Rxf7 {[%clk 0:05:03.5]} 29. Kg2
{[%clk 0:01:33.6]} 29... Bh6 {[%clk 0:05:02.7]} 30. Re1 {[%clk 0:01:33.2]} 30...
Kf8 {[%clk 0:05:01.1]} 31. e4 {[%clk 0:01:22.5]} 31... Rf4 {[%clk 0:04:46.8]}
32. exd5 {[%clk 0:01:17]} 32... cxd5 {[%clk 0:04:48]} 33. Rd1 {[%clk 0:01:10.3]}
33... Ke7 {[%clk 0:04:47.3]} 34. Rd3 {[%clk 0:01:09.2]} 34... Kd7 {[%clk
0:04:41.6]} 35. Rh3 {[%clk 0:00:50.4]} 35... Bf8 {[%clk 0:04:39.2]} 36. Rh7+
{[%clk 0:00:43.5]} 36... Be7 {[%clk 0:04:34.1]} 37. b4 {[%clk 0:00:35.2]} 37...
Rxd4 {[%clk 0:04:33.1]} 38. b5 {[%clk 0:00:35.9]} 38... Rc4 {[%clk 0:04:31.2]}
39. c6+ {[%clk 0:00:35]} 39... bxc6 {[%clk 0:04:31.7]} 40. bxc6+ {[%clk
0:00:35.2]} 40... Rxc6 {[%clk 0:04:32.8]} 41. Kf3 {[%clk 0:00:34.7]} 41... Rc4
{[%clk 0:04:31.8]} 0-1

[Event "GrandPrix_30.05"]
[Site "Chess.com"]
[Date "2020.05.30"]
[Round "5"]
[White "KJakubowski"]
[Black "VMikhalevski"]
[Result "0-1"]
[WhiteElo "2390"]
[BlackElo "2648"]
[TimeControl "600+2"]
[EndTime "10:22:45 PDT"]
[Termination "VMikhalevski won by resignation"]

1. d4 {[%clk 0:10:01.1]} 1... Nf6 {[%clk 0:09:59.8]} 2. Nf3 {[%clk 0:10:00.2]}
2... g6 {[%clk 0:10:00.2]} 3. Bg5 {[%clk 0:10:00]} 3... Bg7 {[%clk 0:10:00.8]}
4. Nbd2 {[%clk 0:10:00.1]} 4... O-O {[%clk 0:10:01.1]} 5. c3 {[%clk 0:09:57.4]}
5... d5 {[%clk 0:09:55.5]} 6. e3 {[%clk 0:09:56.3]} 6... Nbd7 {[%clk 0:09:56.2]}
7. Be2 {[%clk 0:09:55.1]} 7... Re8 {[%clk 0:09:54.4]} 8. O-O {[%clk 0:09:53.9]}
8... c6 {[%clk 0:09:55.2]} 9. Qb3 {[%clk 0:09:45.1]} 9... a5 {[%clk 0:09:45.7]}
10. c4 {[%clk 0:09:19.5]} 10... a4 {[%clk 0:09:32.7]} 11. Qc2 {[%clk 0:08:54.9]}
11... Nb6 {[%clk 0:09:26.8]} 12. Rad1 {[%clk 0:07:58.3]} 12... Bf5 {[%clk
0:09:12.7]} 13. Bd3 {[%clk 0:07:44.3]} 13... Qc8 {[%clk 0:08:42.8]} 14. Bxf5
{[%clk 0:07:26.5]} 14... Qxf5 {[%clk 0:08:42.6]} 15. Qxf5 {[%clk 0:07:26.7]}
15... gxf5 {[%clk 0:08:43.6]} 16. Bxf6 {[%clk 0:07:27.8]} 16... Bxf6 {[%clk
0:08:43.4]} 17. Rc1 {[%clk 0:07:28.2]} 17... e6 {[%clk 0:08:39.8]} 18. g3 {[%clk
0:07:17.9]} 18... Ra5 {[%clk 0:08:27.3]} 19. c5 {[%clk 0:05:55.2]} 19... Nd7
{[%clk 0:08:14.8]} 20. Rc2 {[%clk 0:05:53.9]} 20... Rb5 {[%clk 0:07:36.6]} 21.
Rb1 {[%clk 0:05:44.6]} 21... Rb8 {[%clk 0:07:27.2]} 22. Ne1 {[%clk 0:05:43.4]}
22... e5 {[%clk 0:07:13.9]} 23. dxe5 {[%clk 0:05:28.4]} 23... Nxe5 {[%clk
0:07:14.2]} 24. f4 {[%clk 0:05:19.8]} 24... Ng4 {[%clk 0:06:59.4]} 25. Nf1
{[%clk 0:05:13.1]} 25... Re8 {[%clk 0:06:50.1]} 26. Ng2 {[%clk 0:04:41.5]} 26...
d4 {[%clk 0:06:49.5]} 27. Re1 {[%clk 0:04:08.2]} 27... Nxe3 {[%clk 0:06:14.3]}
28. Nfxe3 {[%clk 0:03:45.7]} 28... dxe3 {[%clk 0:06:14.8]} 29. Kf1 {[%clk
0:03:46.3]} 29... Bd4 {[%clk 0:05:57.4]} 30. Ke2 {[%clk 0:03:14.7]} 30... Bxc5
{[%clk 0:05:37.3]} 31. Rd1 {[%clk 0:03:14.7]} 31... Re7 {[%clk 0:04:46.4]} 32.
Rd8+ {[%clk 0:02:22]} 32... Kg7 {[%clk 0:04:46.6]} 33. Ne1 {[%clk 0:02:23.4]}
33... Bb6 {[%clk 0:04:39.4]} 34. Ra8 {[%clk 0:02:22.9]} 34... Re4 {[%clk
0:03:56.8]} 35. Nd3 {[%clk 0:01:47.4]} 35... Rd5 {[%clk 0:03:52.1]} 36. Ne5
{[%clk 0:01:20.6]} 36... Ba5 {[%clk 0:03:40.8]} 37. Nf3 {[%clk 0:00:45.8]} 37...
Rd2+ {[%clk 0:03:38.4]} 0-1

[Event "GrandPrix_30.05"]
[Site "Chess.com"]
[Date "2020.05.30"]
[Round "5"]
[White "aleksandrovaleksei"]
[Black "TimofeevAr"]
[Result "1/2-1/2"]
[WhiteElo "2566"]
[BlackElo "2653"]
[TimeControl "600+2"]
[EndTime "10:23:09 PDT"]
[Termination "Game drawn by repetition"]

1. Nf3 {[%clk 0:09:36.5]} 1... c5 {[%clk 0:09:53.7]} 2. e3 {[%clk 0:09:36.9]}
2... Nf6 {[%clk 0:09:52.7]} 3. d4 {[%clk 0:09:37.2]} 3... e6 {[%clk 0:09:52.8]}
4. c4 {[%clk 0:09:33.4]} 4... cxd4 {[%clk 0:09:49.4]} 5. Nxd4 {[%clk 0:09:32]}
5... Nc6 {[%clk 0:09:47.7]} 6. Nc3 {[%clk 0:09:26.5]} 6... Be7 {[%clk
0:09:31.8]} 7. Be2 {[%clk 0:09:15.4]} 7... O-O {[%clk 0:09:31.8]} 8. O-O {[%clk
0:09:16.2]} 8... d5 {[%clk 0:09:23.5]} 9. cxd5 {[%clk 0:09:16.4]} 9... Nxd5
{[%clk 0:09:24.6]} 10. Nxd5 {[%clk 0:09:14.5]} 10... exd5 {[%clk 0:09:25.4]} 11.
Nxc6 {[%clk 0:09:03.3]} 11... bxc6 {[%clk 0:09:25.8]} 12. Qc2 {[%clk 0:09:04.9]}
12... Bb7 {[%clk 0:08:55.9]} 13. b3 {[%clk 0:09:00]} 13... c5 {[%clk 0:08:56.3]}
14. Bf3 {[%clk 0:08:55.7]} 14... Qb6 {[%clk 0:08:53.5]} 15. Bb2 {[%clk
0:08:41.7]} 15... Rac8 {[%clk 0:08:44.6]} 16. Rfd1 {[%clk 0:08:39.3]} 16... c4
{[%clk 0:08:33.5]} 17. Bd4 {[%clk 0:08:02.4]} 17... Qa6 {[%clk 0:08:31.7]} 18.
bxc4 {[%clk 0:07:34.8]} 18... dxc4 {[%clk 0:08:29]} 19. Bxb7 {[%clk 0:07:30.1]}
19... Qxb7 {[%clk 0:08:29.7]} 20. Rab1 {[%clk 0:07:26.4]} 20... Qa6 {[%clk
0:08:26.5]} 21. h3 {[%clk 0:05:35.7]} 21... Bf6 {[%clk 0:08:16.9]} 22. Bxf6
{[%clk 0:05:34.6]} 22... Qxf6 {[%clk 0:08:15.3]} 23. Rd4 {[%clk 0:05:32.6]}
23... Qa6 {[%clk 0:08:07.3]} 24. Rb4 {[%clk 0:05:02.4]} 24... c3 {[%clk
0:07:59.6]} 25. Rb3 {[%clk 0:05:00.7]} 25... g6 {[%clk 0:07:54.5]} 26. a3 {[%clk
0:04:56.7]} 26... Qa5 {[%clk 0:06:00.8]} 27. Rd3 {[%clk 0:04:55.7]} 27... Rfd8
{[%clk 0:05:45.9]} 28. Rbxc3 {[%clk 0:03:56.4]} 28... Rb8 {[%clk 0:05:45.7]} 29.
g3 {[%clk 0:02:28.2]} 29... Rxd3 {[%clk 0:05:23.2]} 30. Qxd3 {[%clk 0:02:02]}
30... Qb6 {[%clk 0:05:20.1]} 31. Qd5 {[%clk 0:01:28.5]} 31... Rd8 {[%clk
0:05:15.5]} 32. Qe4 {[%clk 0:01:25.4]} 32... Qf6 {[%clk 0:05:08.9]} 33. Rd3
{[%clk 0:01:07]} 33... Rb8 {[%clk 0:05:09.1]} 34. Qf4 {[%clk 0:00:26.8]} 34...
Rb1+ {[%clk 0:04:53.4]} 35. Kg2 {[%clk 0:00:27.4]} 35... Qxf4 {[%clk 0:04:37.6]}
36. gxf4 {[%clk 0:00:28.2]} 36... Ra1 {[%clk 0:04:38.4]} 37. e4 {[%clk
0:00:28.9]} 37... Kf8 {[%clk 0:04:36.2]} 38. Rc3 {[%clk 0:00:25.2]} 38... a5
{[%clk 0:04:36.1]} 39. e5 {[%clk 0:00:24]} 39... Ke7 {[%clk 0:04:35.7]} 40. Kf3
{[%clk 0:00:25]} 40... Ke6 {[%clk 0:04:36.3]} 41. Ke4 {[%clk 0:00:26.1]} 41...
Re1+ {[%clk 0:04:35.9]} 42. Re3 {[%clk 0:00:25]} 42... Ra1 {[%clk 0:04:36.3]}
43. Rb3 {[%clk 0:00:17.2]} 43... Re1+ {[%clk 0:04:35.2]} 44. Kf3 {[%clk
0:00:15.6]} 44... Ra1 {[%clk 0:04:35.5]} 45. Rb6+ {[%clk 0:00:09]} 45... Ke7
{[%clk 0:04:34.5]} 46. Rb3 {[%clk 0:00:08.8]} 46... Ke6 {[%clk 0:04:35.5]} 47.
Ke4 {[%clk 0:00:07.9]} 47... Re1+ {[%clk 0:04:35.5]} 48. Kf3 {[%clk 0:00:08.1]}
48... Ra1 {[%clk 0:04:35.9]} 1/2-1/2